bitfinex/quotes_ETHUSD_20241001
["timestamp","ask_amount","ask_price","bid_price","bid_amount"]
[1727801254195,4.01477,2490.8,2490.7,0.1238935]
[1727801254347,5.44437,2490.8,2490.7,0.1238935]
[1727801254547,5.44587,2489.9,2489.1,4.01746]
[1727801254786,4.01577,2490.2,2489.0,4.01758]
[1727801254787,4.01601,2490.1,2489.0,4.01758]
[1727801255089,4.61216917,2490.5,2489.1,0.401758]
[1727801255090,4.01526,2490.5,2489.1,0.401758]
[1727801255313,4.01608,2490.0,2489.5,4.01672]
[1727801255601,1.4296,2490.6,2489.7,4.01643]
[1727801255602,4.01558,2490.3,2489.7,4.01643]
[1727801255743,5.3962,2491.0,2489.7,4.0165]
[1727801255940,4.01527,2490.5,2489.7,4.01649]
[1727801256143,4.01527,2490.5,2489.9,4.01613]
[1727801256456,1.4291,2491.1,2489.7,4.0165]
[1727801256457,4.01558,2490.3,2489.7,4.01644]
[1727801256659,4.01558,2490.3,2489.7,4.01642]
[1727801256841,4.01558,2490.3,2489.6,4.01661]
[1727801256842,4.01563,2490.3,2489.6,4.01661]
[1727801257040,4.417193,2490.3,2489.7,4.01651]
[1727801257277,8.0313,2490.3,2489.6,4.01661]
[1727801257558,4.01563,2490.3,2489.7,1.3225]
[1727801257786,4.01563,2490.3,2489.7,5.33901]
[1727801258087,6.04126917,2491.1,2489.5,0.55]
[1727801258246,4.01554,2490.4,2489.8,4.01638]
[1727801258449,4.01554,2490.4,2489.8,4.01629]
[1727801258654,4.61860692,2491.0,2489.5,0.55]
[1727801258655,4.01509,2490.6,2490.0,4.01601]
[1727801258986,4.01417,2491.2,2490.0,4.01601]
[1727801258987,4.01397,2491.3,2490.7,4.01489]
[1727801259145,4.01414,2491.2,2490.7,1.374]
[1727801259346,5.01345817,2491.9,2490.7,2.314431]
[1727801259347,4.01357,2491.6,2490.7,2.314431]
[1727801259546,0.00586628,2492.2,2491.2,1.9369]
[1727801259784,4.01849628,2492.2,2491.5,4.01351]
[1727801259989,4.01849628,2492.2,2491.3,4.0139]
[1727801259990,4.01849628,2492.2,2491.4,0.55]
[1727801260198,0.00586628,2492.2,2491.4,0.55]
[1727801260487,8.62268917,2493.5,2491.4,0.55]
[1727801260488,0.06930878,2493.8,2491.9,1.3869]
[1727801260687,5.3659,2494.2,2492.3,0.55]
[1727801260846,4.00946,2494.1,2492.4,4.01214]
[1727801261047,4.01077,2493.3,2492.4,4.01214]
[1727801261247,4.00946,2494.1,2492.8,1.3869]
[1727801261480,4.01037,2493.6,2492.8,1.3869]
[1727801261656,4.01066,2493.4,2492.8,1.3869]
[1727801261857,4.00967,2494.0,2492.8,1.3869]
[1727801261858,4.01108,2493.1,2492.8,1.3869]
[1727801262058,4.01076,2493.3,2492.8,1.3869]
[1727801262280,8.823784,2493.3,2492.8,1.3869]
[1727801262501,8.823784,2493.3,2491.9,4.01294]
[1727801262502,4.01141,2492.9,2492.1,4.01254]
[1727801262659,4.01141,2492.9,2491.7,1.3191]
[1727801262660,4.01152,2492.9,2491.7,1.3191]
[1727801262858,0.802124,2493.3,2492.0,8.02555]
[1727801262859,4.01157,2492.8,2492.0,8.02555]
[1727801263092,4.812904,2493.3,2492.0,8.02555]
[1727801263093,4.01154,2492.9,2492.1,4.01267]
[1727801263262,0.401154,2492.8,2492.1,4.01267]
[1727801263465,4.01181,2492.7,2491.8,4.56305]
[1727801263807,0.401154,2492.8,2492.1,4.01255]
[1727801263949,0.401154,2492.8,2492.0,4.01273]
[1727801264160,0.401154,2492.8,2491.8,0.55]
[1727801264161,4.01214,2492.5,2491.8,4.01308]
[1727801264369,0.401154,2492.8,2491.8,4.01308]
[1727801264370,0.401214,2492.4,2491.8,4.01308]
[1727801264572,0.401214,2492.4,2491.7,1.3191]
[1727801264573,4.412784,2492.8,2492.1,4.01264]
[1727801264859,4.412784,2492.8,2492.0,4.01272]
[1727801265064,4.412784,2492.8,2492.1,4.01258]
[1727801265695,4.412784,2492.8,2491.9,4.0129]
[1727801265696,4.01198,2492.6,2491.8,0.55]
[1727801265887,4.412794,2492.8,2492.0,4.0127]
[1727801266086,4.4531094,2492.7,2492.0,4.0127]
[1727801266265,4.01229,2492.4,2491.7,5.33234]
[1727801266468,4.4530294,2492.7,2492.1,4.01266]
[1727801266659,4.01166,2492.8,2491.9,4.01286]
[1727801266873,4.01147,2492.9,2492.2,4.01237]
[1727801267062,0.802124,2493.3,2492.7,4.01159]
[1727801267262,0.802124,2493.3,2492.8,0.07986699]
[1727801267520,4.01035,2493.6,2492.8,0.07986699]
[1727801267521,1.4416,2494.4,2492.8,4.61216917]
[1727801267818,0.41768285,2494.6,2493.7,4.00998]
[1727801268048,4.00909,2494.4,2493.7,0.55]
[1727801268267,4.00941,2494.2,2493.8,1.3251]
[1727801268539,4.00927,2494.3,2493.8,1.3251]
[1727801268747,4.00947,2494.1,2493.5,4.01029]
[1727801269047,0.400927,2494.2,2493.7,4.01001]
[1727801269207,4.00858,2494.7,2494.0,4.00961]
[1727801269400,8.01718,2494.7,2494.0,4.00961]
[1727801269599,8.01723,2494.7,2493.9,0.55]
[1727801269834,8.01723,2494.7,2494.0,4.00952]
[1727801270036,4.00833,2494.9,2494.3,4.00911]
[1727801270237,4.00833,2494.9,2494.3,4.00902]
[1727801270238,4.00829,2494.9,2494.3,4.00902]
[1727801270411,4.00839,2494.8,2494.1,1.3255]
[1727801270617,0.801621,2494.9,2494.1,1.3255]
[1727801270919,4.00859,2494.7,2494.1,5.33492]
[1727801271117,4.00842,2494.8,2494.1,5.33492]
[1727801271118,4.00865,2494.6,2494.1,1.3255]
[1727801271519,4.00842,2494.8,2494.1,5.33482]
[1727801271759,0.8818141,2494.8,2494.4,4.00886]
[1727801272042,4.0081,2495.0,2494.4,4.07100606]
[1727801272344,4.00774,2495.2,2494.4,0.06214606]
[1727801272540,1.4091,2495.6,2494.4,0.06214606]
[1727801272541,4.00742,2495.4,2494.7,4.00847]
[1727801272843,4.00765,2495.3,2494.7,4.00847]
[1727801273060,0.801507,2495.3,2494.9,4.00803]
[1727801273216,4.60025771,2496.0,2495.1,4.00779]
[1727801273217,4.00675,2495.8,2495.1,4.00779]
[1727801273410,4.00749,2495.4,2494.9,1.4516]
[1727801273724,4.00726,2495.5,2495.0,4.008]
[1727801274044,4.00696,2495.7,2495.0,4.00798]
[1727801274250,4.00722,2495.5,2494.9,1.4516]
[1727801274422,4.00741,2495.4,2494.9,1.4516]
[1727801274625,4.00726,2495.5,2494.9,1.4516]
[1727801274935,4.00762,2495.3,2494.9,1.4516]
[1727801275136,4.00696,2495.7,2495.1,4.00772]
[1727801275347,4.00659,2495.9,2495.2,0.05649326]
[1727801275523,8.01202,2496.3,2495.2,4.61216917]
[1727801275726,5.38484,2496.9,2495.3,1.4239]
[1727801275909,8.01205,2496.3,2495.6,4.55695]
[1727801276110,4.0053,2496.7,2496.0,1.3609]
[1727801276324,4.00507,2496.9,2496.1,0.55]
[1727801276538,4.0047,2497.1,2496.5,4.00547]
[1727801276728,4.00433,2497.3,2496.1,0.55]
[1727801276947,4.00433,2497.3,2496.1,1.3609]
[1727801276948,4.00434,2497.3,2496.1,1.3609]
[1727801277162,4.00434,2497.3,2495.7,0.63798591]
[1727801277163,1.4613,2496.8,2495.7,2.01548591]
[1727801277366,4.00646,2496.0,2495.7,1.3775]
[1727801277652,4.407256,2495.9,2495.7,1.3775]
[1727801277846,4.407256,2495.9,2495.1,1.3262]
[1727801277847,0.400646,2495.9,2495.1,1.3262]
[1727801278062,8.01363,2495.8,2495.1,1.3262]
[1727801278260,4.0068,2495.8,2495.1,1.3262]
[1727801278412,4.407256,2495.9,2495.1,1.3262]
[1727801278615,0.8413726,2495.8,2495.1,5.33403]
[1727801278955,0.8413726,2495.8,2495.1,1.3262]
[1727801279217,0.400646,2495.9,2495.1,1.3262]
[1727801279218,4.00719,2495.6,2495.1,1.3262]
[1727801279361,4.00733,2495.5,2495.1,1.3262]
[1727801279787,4.00661,2495.9,2495.1,1.3262]
[1727801279991,4.00732,2495.5,2495.1,1.3262]
[1727801280195,1.4569,2496.0,2494.5,1.4563]
[1727801280416,4.00724,2495.5,2494.5,1.4563]
[1727801280728,0.60690692,2495.9,2495.0,4.00801]
[1727801280954,4.00632,2496.1,2495.5,4.00711]
[1727801281215,5.3714,2496.9,2495.0,4.00798]
[1727801281216,4.00563,2496.5,2495.9,4.00651]
[1727801281420,1.3664,2496.9,2496.2,1.3621]
[1727801281421,4.00501,2496.9,2496.2,1.3621]
[1727801281590,4.07233163,2498.0,2496.4,8.61782917]
[1727801281801,4.00475,2497.1,2496.5,0.55]
[1727801282003,4.00438,2497.3,2496.6,4.0053]
[1727801282204,4.404452,2497.5,2496.5,4.55548]
[1727801282205,4.00479,2497.1,2496.5,4.55548]
[1727801282404,4.00457,2497.2,2496.6,4.00535]
[1727801282619,4.00457,2497.2,2496.3,0.55]
[1727801282620,4.00441,2497.3,2496.3,0.55]
[1727801282937,4.00459,2497.2,2496.5,4.00545]
[1727801283218,4.4448902,2497.3,2496.5,4.00545]
[1727801283422,4.00479,2497.1,2496.5,8.01094]
[1727801283625,4.00497,2496.9,2496.3,4.5558]
[1727801283780,0.400497,2496.8,2496.2,1.3621]
[1727801283978,1.84604408,2497.0,2495.3,1.3634]
[1727801284182,1.84604408,2497.0,2495.6,4.00694]
[1727801284183,4.00611,2496.2,2495.6,4.00694]
[1727801284698,4.00632,2496.1,2495.4,4.00726]
[1727801284991,5.85087408,2497.0,2495.4,4.00726]
[1727801284992,4.00642,2496.0,2495.4,4.00726]
[1727801285195,4.00618,2496.2,2495.4,4.00726]
[1727801285380,4.00618,2496.2,2495.3,1.3634]
[1727801285381,4.00665,2495.9,2495.3,1.3634]
[1727801285581,4.00633,2496.1,2495.5,4.00719]
[1727801285793,4.00633,2496.1,2495.6,0.03260477]
[1727801286093,4.00651,2496.0,2495.6,0.050926]
[1727801286305,4.00652,2496.0,2495.3,1.3634]
[1727801286534,4.00699,2495.7,2495.3,1.3634]
[1727801286824,4.0073,2495.5,2495.3,1.3634]
[1727801287200,1.4398,2496.2,2494.8,1.4062]
[1727801287522,8.01526,2495.3,2494.8,1.4062]
[1727801287686,4.00785,2495.1,2494.8,1.4062]
[1727801287882,4.00785,2495.1,2494.4,4.00887]
[1727801287883,0.801548,2495.1,2494.4,1.4062]
[1727801288087,1.4096,2495.4,2494.4,1.4062]
[1727801288320,1.4096,2495.4,2493.9,5.41589]
[1727801288321,4.00819,2494.9,2493.9,5.41589]
[1727801288628,8.01688,2494.8,2494.2,4.0092]
[1727801288784,4.00877,2494.6,2493.9,1.4062]
[1727801288985,4.00875,2494.6,2494.0,4.00962]
[1727801289211,4.00917,2494.3,2493.9,1.4062]
[1727801289596,4.00891,2494.5,2493.9,1.4062]
[1727801289904,4.0086,2494.7,2494.2,4.00929]
[1727801290093,4.0086,2494.7,2494.1,4.04903459]
[1727801290289,4.0086,2494.7,2494.1,0.03960459]
[1727801290640,4.00759,2495.3,2494.0,4.0096]
[1727801290641,4.00759,2495.3,2494.3,1.3654]
[1727801290940,5.38963,2495.8,2494.3,1.3654]
[1727801291230,4.00713,2495.6,2494.4,9.17108917]
[1727801291529,4.00704,2495.7,2495.0,4.00793]
[1727801291715,4.00668,2495.9,2495.3,4.00751]
[1727801291917,4.00666,2495.9,2495.3,4.00751]
[1727801292228,4.00583,2496.4,2495.3,4.00751]
[1727801292442,4.00562,2496.5,2495.6,0.55]
[1727801292602,4.00537,2496.7,2496.1,8.01239]
[1727801292945,1.394,2497.2,2496.3,4.00589]
[1727801292946,4.00516,2496.8,2496.3,4.00589]
[1727801293246,1.394,2497.2,2495.8,1.3768]
[1727801293247,4.00628,2496.1,2495.8,1.3768]
[1727801293396,4.00563,2496.5,2495.8,1.3768]
[1727801293592,4.00602,2496.3,2495.8,1.3768]
[1727801293933,4.00612,2496.2,2495.8,1.3768]
[1727801294091,0.400563,2496.5,2495.8,1.3768]
[1727801294092,8.0117,2496.4,2495.8,1.3768]
[1727801294295,4.00581,2496.4,2495.9,0.57694352]
[1727801294638,4.00446,2497.3,2495.9,0.57694352]
[1727801294639,5.39856,2497.2,2495.9,0.55]
[1727801294841,4.544566,2497.1,2495.9,0.55]
[1727801295142,4.544566,2497.1,2496.6,4.00544]
[1727801295637,4.544566,2497.1,2496.5,0.55]
[1727801295783,4.00497,2496.9,2496.5,0.55]
[1727801295987,4.544566,2497.1,2496.2,4.00604]
[1727801295988,0.539856,2497.1,2496.2,4.00598]
[1727801296217,4.0052,2496.8,2496.2,4.00598]
[1727801296544,4.0039,2497.6,2496.3,0.55]
[1727801296545,1.4119,2497.6,2496.3,0.55]
[1727801296833,0.44976426,2497.7,2497.0,4.00469]
[1727801296834,4.00377,2497.7,2497.0,4.00469]
[1727801296983,0.1238935,2498.3,2496.5,4.00553]
[1727801296984,4.00344,2497.9,2497.3,4.0043]
[1727801297189,4.004,2497.6,2497.2,1.3356]
[1727801297391,4.0037,2497.7,2497.2,1.3356]
[1727801297590,4.1266635,2498.3,2497.3,0.55]
[1727801297591,4.00312,2498.1,2497.3,0.55]
[1727801297824,4.1267035,2498.3,2497.2,1.3356]
[1727801297825,4.00379,2497.7,2497.2,1.3356]
[1727801298054,4.00342,2497.9,2497.3,0.55]
[1727801298231,0.1238935,2498.3,2497.2,1.3356]
[1727801298232,4.00363,2497.8,2497.2,1.3356]
[1727801298435,4.00417,2497.4,2497.2,1.3356]
[1727801298661,4.404827,2497.3,2496.8,1.4544]
[1727801298841,4.00479,2497.1,2496.8,1.4544]
[1727801299043,4.00478,2497.1,2496.8,1.4544]
[1727801299276,4.404827,2497.3,2496.3,1.3646]
[1727801299277,4.00496,2496.9,2496.3,1.3646]
[1727801299429,4.00482,2497.0,2496.3,1.3646]
[1727801299627,4.00482,2497.0,2496.5,4.00559]
[1727801299628,4.805759,2497.0,2496.5,4.00559]
[1727801299842,0.400417,2497.3,2496.3,5.37042]
[1727801300176,4.0048,2497.0,2496.5,4.00558]
[1727801300318,4.00465,2497.1,2496.5,4.00552]
[1727801300515,4.00465,2497.1,2496.3,1.3646]
[1727801300516,4.00507,2496.9,2496.4,0.55]
[1727801300776,4.00329,2498.0,2496.4,0.55]
[1727801300777,4.00482,2497.0,2496.5,4.00559]
[1727801301050,4.00482,2497.0,2496.4,0.55]
[1727801301255,4.00528,2496.7,2496.4,0.55]
[1727801301453,0.400528,2496.6,2496.3,1.3646]
[1727801301659,4.00486,2497.0,2496.3,1.3646]
[1727801301841,8.01105,2496.6,2495.9,1.3425]
[1727801302049,8.01105,2496.6,2495.9,5.34894]
[1727801302050,4.00548,2496.6,2495.9,5.34894]
[1727801302279,4.00578,2496.4,2495.9,5.34894]
[1727801302569,4.00578,2496.4,2495.9,1.3425]
[1727801302768,0.400578,2496.4,2495.9,1.3425]
[1727801302975,4.00698,2495.7,2495.5,1.334]
[1727801303268,4.00583,2496.4,2495.0,1.334]
[1727801303269,4.00721,2495.5,2495.0,1.334]
[1727801303418,4.00614,2496.2,2493.9,0.541629]
[1727801303419,1.4518,2495.7,2494.6,1.3719]
[1727801303618,4.00726,2495.5,2494.6,1.3719]
[1727801303917,1.4518,2495.7,2493.7,5.38188]
[1727801303918,4.00914,2494.3,2493.7,5.38188]
[1727801304131,4.00948,2494.1,2493.7,1.3719]
[1727801304315,1.4518,2494.8,2493.7,1.3719]
[1727801304517,4.00884,2494.5,2493.8,4.06234852]
[1727801304960,1.4518,2494.8,2493.7,1.3719]
[1727801305128,1.4518,2494.8,2492.5,4.01189]
[1727801305129,4.00962,2494.0,2493.4,4.01045]
[1727801305468,4.0089,2494.5,2493.7,4.01001]
[1727801305685,4.0089,2494.5,2493.3,1.3463]
[1727801305686,4.00962,2494.0,2493.3,5.35696]
[1727801305837,4.00984,2493.9,2493.3,5.35692]
[1727801306190,4.00978,2493.9,2493.3,5.35692]
[1727801306479,4.00996,2493.8,2493.3,1.3463]
[1727801306776,0.80194,2493.9,2493.3,5.35696]
[1727801306777,4.0098,2493.9,2493.3,5.35696]
[1727801307084,4.0101,2493.7,2493.3,1.3463]
[1727801307237,4.00973,2494.0,2493.3,1.3463]
[1727801307434,4.00884,2494.5,2493.3,1.882013]
[1727801307435,4.0089,2494.5,2493.3,1.882013]
[1727801307668,4.0089,2494.5,2493.4,0.08019141]
[1727801307842,1.4518,2494.8,2494.0,4.00961]
[1727801307843,5.46025,2494.8,2494.0,4.00961]
[1727801308052,5.46025,2494.8,2493.3,9.96916917]
[1727801308053,4.00834,2494.8,2494.1,5.4417389]
[1727801308259,4.00785,2495.1,2494.5,4.00872]
[1727801308578,0.400726,2495.4,2494.2,0.55]
[1727801308579,4.00775,2495.2,2494.2,0.55]
[1727801308782,4.00843,2494.8,2494.2,0.55]
[1727801309098,4.00813,2495.0,2494.4,4.00896]
[1727801309241,4.809719,2495.0,2494.4,4.00896]
[1727801309436,0.801589,2495.0,2494.1,1.3522]
[1727801309649,4.00868,2494.6,2494.1,1.3522]
[1727801310041,4.00876,2494.6,2494.1,1.3522]
[1727801310238,2.255889,2495.0,2494.1,1.3522]
[1727801310239,4.00839,2494.8,2494.1,1.3522]
[1727801310556,4.00874,2494.6,2494.1,1.3522]
[1727801310763,5.0356099,2494.8,2494.1,1.3522]
[1727801310949,4.00834,2494.8,2494.3,4.00901]
[1727801311150,4.00811,2495.0,2494.1,1.3522]
[1727801311363,1.3612,2495.3,2494.1,5.36162]
[1727801311364,4.00835,2494.8,2494.1,5.36162]
[1727801311563,1.3612,2495.3,2494.1,1.3522]
[1727801311564,8.01627,2495.0,2494.1,1.3522]
[1727801311766,1.3612,2495.3,2494.1,1.3522]
[1727801311767,4.00777,2495.2,2494.1,1.3522]
[1727801311967,4.00745,2495.4,2494.6,4.0086]
[1727801312190,1.3612,2495.7,2494.2,3.55]
[1727801312191,4.00789,2495.1,2494.4,4.0089]
[1727801312368,4.00708,2495.6,2494.2,7.55923]
[1727801312683,4.0079,2495.1,2494.2,0.55]
[1727801312980,8.01528,2495.3,2494.6,4.00865]
[1727801313196,4.00819,2494.9,2494.2,4.00923]
[1727801313403,4.00819,2494.9,2494.1,1.3522]
[1727801313404,1.82877406,2495.7,2494.1,1.3522]
[1727801313555,4.00772,2495.2,2494.5,4.00866]
[1727801313760,4.00772,2495.2,2494.4,0.55]
[1727801313954,4.00772,2495.2,2494.7,4.00838]
[1727801313955,4.0077,2495.2,2494.7,4.00838]
[1727801314152,4.0077,2495.2,2494.4,0.55]
[1727801314390,4.0077,2495.2,2494.5,4.00868]
[1727801314597,4.00805,2495.0,2494.5,4.00868]
[1727801314908,4.40847,2495.2,2494.3,1.364]
[1727801314909,0.40077,2495.2,2494.3,1.364]
[1727801315206,0.40077,2495.2,2494.0,1.4357]
[1727801315207,4.00904,2494.4,2494.0,1.4357]
[1727801315387,4.00942,2494.2,2494.0,1.4357]
[1727801315556,0.400904,2494.4,2493.5,4.01042]
[1727801315758,4.00955,2494.1,2493.5,5.44609]
[1727801315991,4.00922,2494.3,2493.8,4.00992]
[1727801316293,4.00933,2494.2,2493.5,1.4357]
[1727801316498,4.00971,2494.0,2493.5,1.4357]
[1727801316682,4.00936,2494.2,2493.5,1.4357]
[1727801316998,4.00936,2494.2,2493.6,8.02025]
[1727801317166,4.00936,2494.2,2493.5,1.4357]
[1727801317167,4.00983,2493.9,2493.5,1.4357]
[1727801317372,0.801841,2494.2,2493.3,4.01073]
[1727801317581,4.00972,2494.0,2493.3,4.01073]
[1727801317786,4.00972,2494.0,2493.3,4.01065]
[1727801317787,4.00995,2493.8,2493.3,4.01065]
[1727801317973,4.00995,2493.8,2493.2,4.0108]
[1727801318188,4.00995,2493.8,2493.1,5.37526]
[1727801318189,4.01019,2493.7,2493.1,5.37526]
[1727801318367,1.4703,2494.3,2493.1,1.3643]
[1727801318368,4.01052,2493.5,2493.1,1.3643]
[1727801318704,1.4703,2494.3,2493.1,1.3643]
[1727801318705,4.01021,2493.7,2493.1,1.3643]
[1727801318858,4.01045,2493.5,2493.1,1.3643]
[1727801319060,8.02046,2493.7,2493.1,5.37521]
[1727801319260,8.02046,2493.7,2493.1,1.3643]
[1727801319261,0.802046,2493.7,2493.1,1.3643]
[1727801319458,4.01085,2493.3,2492.7,5.38189]
[1727801319693,4.01085,2493.3,2492.7,1.3703]
[1727801319904,4.01111,2493.1,2492.7,1.3703]
[1727801320111,4.01025,2493.7,2493.2,4.0109]
[1727801320400,4.01053,2493.5,2492.9,4.01137]
[1727801320617,19.53,2494.2,2493.0,4.01112]
[1727801320618,23.5393,2494.2,2493.0,4.01112]
[1727801320778,1.4703,2494.3,2492.9,4.61216917]
[1727801320977,1.4703,2494.3,2493.6,4.01018]
[1727801320978,4.0093,2494.2,2493.6,4.01018]
[1727801321169,4.00938,2494.2,2493.8,1.344]
[1727801321371,20.9617,2494.7,2493.8,1.344]
[1727801321679,8.01886,2494.2,2493.8,1.344]
[1727801321890,4.00942,2494.2,2493.8,1.344]
[1727801322199,4.00942,2494.2,2493.4,1.3919]
[1727801322200,0.801847,2494.2,2493.4,1.3919]
[1727801322366,24.9702,2494.7,2493.4,1.3919]
[1727801322367,20.9617,2494.7,2493.4,1.3919]
[1727801322681,8.0194,2494.0,2493.4,5.40235]
[1727801322885,4.00947,2494.1,2493.5,0.08020227]
[1727801323067,4.01007,2493.8,2493.4,1.3919]
[1727801323271,4.01091,2493.2,2492.5,4.01202]
[1727801323569,4.01091,2493.2,2492.4,1.3859]
[1727801323570,4.01191,2492.6,2492.4,1.3859]
[1727801323843,1.4436,2493.2,2491.9,4.01292]
[1727801323844,4.01204,2492.5,2491.9,4.01288]
[1727801323978,4.01239,2492.3,2491.8,5.39895]
[1727801324174,3.0,2493.1,2491.8,1.3859]
[1727801324175,4.01206,2492.5,2491.8,1.3859]
[1727801324512,0.401206,2492.5,2491.8,1.3859]
[1727801324808,4.01264,2492.2,2491.8,1.3859]
[1727801325013,4.01244,2492.3,2491.8,1.3859]
[1727801325512,4.01246,2492.3,2491.8,4.01305]
[1727801326218,8.02302,2492.9,2492.3,5.47442]
[1727801326373,0.947892,2492.9,2492.3,1.4622]
[1727801326578,1.4559,2493.1,2492.3,1.4622]
[1727801326579,4.01134,2493.0,2492.3,1.4622]
[1727801326774,1.4559,2493.1,2492.3,1.4622]
[1727801326972,4.01093,2493.2,2492.7,4.01163]
[1727801327205,4.01085,2493.3,2492.8,0.08022865]
[1727801327206,4.01089,2493.3,2492.8,0.08022865]
[1727801327389,1.4709,2493.5,2492.3,1.4622]
[1727801327721,4.01188,2492.6,2492.3,1.4622]
[1727801327892,4.01221,2492.4,2491.9,5.40725]
[1727801328295,8.02394,2492.6,2492.0,4.01275]
[1727801328509,4.01227,2492.4,2491.9,5.40728]
[1727801329084,1.3882,2492.4,2491.1,1.4587]
[1727801329285,1.3882,2492.4,2491.1,9.48709]
[1727801329286,4.0134,2491.7,2491.1,9.48709]
[1727801329481,4.0134,2491.7,2491.1,5.47288]
[1727801329985,4.0134,2491.7,2491.2,4.01405]
[1727801330185,4.01377,2491.5,2491.1,1.4587]
[1727801330418,4.0135,2491.6,2491.1,1.4587]
[1727801330624,4.0135,2491.6,2491.1,5.47298]
[1727801330824,4.01326,2491.8,2491.1,5.47298]
[1727801330996,4.01326,2491.8,2491.3,4.01396]
[1727801331198,4.01291,2492.0,2491.3,4.01396]
[1727801331401,4.01313,2491.9,2491.3,8.02781]
[1727801331601,4.414201,2492.0,2491.6,4.01345]
[1727801331920,8.02587,2492.0,2491.4,4.01365]
[1727801332121,4.01236,2492.3,2491.1,1.4587]
[1727801332430,4.01365,2491.5,2491.1,1.4587]
[1727801332635,4.01391,2491.4,2491.1,1.4587]
[1727801332799,4.01365,2491.5,2491.1,1.4587]
[1727801333004,4.01341,2491.7,2491.1,5.47297]
[1727801333240,4.0131,2491.9,2491.1,2.005997]
[1727801333541,19.53,2492.2,2491.1,1.4587]
[1727801333833,4.01348,2491.6,2491.1,1.4587]
[1727801334042,4.01292,2492.0,2491.3,4.01394]
[1727801334350,4.01292,2492.0,2491.1,1.4587]
[1727801334351,4.01329,2491.8,2491.1,1.4587]
[1727801334488,4.01293,2492.0,2491.2,4.01402]
[1727801334692,4.01317,2491.8,2491.3,0.547272]
[1727801334902,4.01317,2491.8,2491.2,4.01402]
[1727801334903,8.02646,2491.8,2491.2,4.01402]
[1727801335188,4.01344,2491.7,2491.1,5.47295]
[1727801335547,4.01317,2491.8,2491.1,5.47295]
[1727801335548,4.01363,2491.6,2491.1,1.4587]
[1727801335688,8.02653,2491.8,2491.2,4.01411]
[1727801335891,3.01326,2491.8,2491.2,4.01411]
[1727801336132,3.01326,2491.8,2491.2,4.561311]
[1727801336333,3.01326,2491.8,2491.3,4.01394]
[1727801336540,4.01259,2492.2,2491.7,4.01329]
[1727801336541,4.01264,2492.2,2491.7,4.01329]
[1727801336702,5.4005,2492.4,2491.2,4.561361]
[1727801336703,4.01268,2492.1,2491.5,4.01359]
[1727801337235,4.01268,2492.1,2491.6,4.0134]
[1727801337441,4.01324,2491.8,2491.3,4.01388]
[1727801337636,1.3882,2492.4,2491.1,1.4587]
[1727801337637,4.815246,2492.1,2491.1,1.4587]
[1727801337821,4.01304,2491.9,2491.1,1.4587]
[1727801338020,4.01323,2491.8,2491.3,4.01387]
[1727801338220,4.01304,2491.9,2491.1,1.4587]
[1727801338221,4.01304,2491.9,2491.2,4.01397]
[1727801338397,4.01304,2491.9,2491.3,0.547267]
[1727801338592,4.01304,2491.9,2491.4,4.01379]
[1727801338819,4.01322,2491.8,2491.3,4.561137]
[1727801339019,4.01294,2492.0,2491.3,0.547267]
[1727801339239,4.01323,2491.8,2491.3,4.01389]
[1727801339447,8.02586,2492.0,2491.1,1.4587]
[1727801339742,4.01363,2491.6,2491.1,1.4587]
[1727801339904,4.01338,2491.7,2491.1,1.4587]
[1727801340106,4.01338,2491.7,2489.8,4.01623]
[1727801340107,4.01409,2491.3,2490.7,1.4452]
[1727801340306,4.01455,2491.0,2490.7,1.4452]
[1727801340528,4.01471,2490.9,2490.1,1.4452]
[1727801340734,4.01505,2490.7,2490.1,1.4452]
[1727801340898,1.4546,2491.0,2490.1,1.4452]
[1727801340899,4.01543,2490.4,2490.1,1.4452]
[1727801341094,5.46914,2491.0,2490.1,2.0702659]
[1727801341300,4.01452,2491.0,2490.5,4.01515]
[1727801341534,4.01486,2490.8,2490.2,4.01573]
[1727801341836,4.01415,2491.2,2490.5,4.01516]
[1727801342048,5.4683,2491.5,2491.0,4.01436]
[1727801342202,4.01351,2491.6,2491.1,4.01426]
[1727801342538,4.01365,2491.5,2491.0,4.01437]
[1727801342742,4.01348,2491.6,2491.0,0.802885]
[1727801343079,4.01348,2491.6,2490.5,3.0]
[1727801343080,4.01291,2492.0,2491.1,0.02740036]
[1727801343288,1.4005,2492.0,2491.2,1.4207]
[1727801343441,4.01372,2491.5,2491.0,4.0144]
[1727801343765,4.01372,2491.5,2490.5,5.43586]
[1727801343766,1.4005,2491.3,2490.5,1.4207]
[1727801343987,4.01525,2490.5,2490.2,1.4207]
[1727801344203,4.01519,2490.6,2490.2,1.4207]
[1727801344508,4.01482,2490.8,2490.2,1.4207]
[1727801344625,1.4005,2491.3,2490.3,4.01549]
[1727801344626,4.01456,2491.0,2490.3,4.01549]
[1727801344829,4.01476,2490.9,2490.2,5.43636]
[1727801345070,4.01494,2490.7,2490.2,5.43636]
[1727801345269,4.01494,2490.7,2490.2,1.4207]
[1727801345444,1.4005,2491.3,2490.2,1.4207]
[1727801345445,4.01552,2490.4,2490.2,1.4207]
[1727801345646,4.01524,2490.6,2490.1,4.01587]
[1727801345953,4.01538,2490.5,2490.0,4.01601]
[1727801346152,4.0155,2490.4,2489.9,5.3985]
[1727801346355,4.01576,2490.2,2489.9,1.3823]
[1727801346529,0.401461,2490.9,2489.6,4.01659]